bitfinex/quotes_ETHUSD_20250823
["timestamp","ask_amount","ask_price","bid_price","bid_amount"]
[1755968233980,21.08458274,4755.2,4755.1,0.001]
[1755968234189,21.51678274,4755.2,4755.1,0.001]
[1755968234387,22.97699784,4755.2,4755.1,0.001]
[1755968236383,21.84585021,4755.2,4755.1,0.001]
[1755968237984,21.51670673,4755.2,4755.1,0.001]
[1755968238188,21.60102073,4755.2,4755.1,0.001]
[1755968240601,22.35362126,4755.2,4755.1,0.001]
[1755968240798,7.2485217,4755.2,4755.1,0.2953]
[1755968240985,6.77884204,4755.2,4755.1,0.742]
[1755968241299,11.00334644,4755.2,4755.1,0.2953]
[1755968241486,10.43884204,4755.2,4755.1,0.2953]
[1755968241690,10.73504204,4755.2,4755.1,0.001]
[1755968241895,11.76794644,4755.2,4755.1,0.001]
[1755968242077,11.29954644,4755.2,4755.1,0.001]
[1755968243498,11.10303445,4755.2,4755.1,0.001]
[1755968243704,11.2991298,4755.2,4755.1,0.001]
[1755968244200,10.43846362,4755.2,4755.1,0.2953]
[1755968244412,6.92946362,4755.2,4755.1,0.2953]
[1755968244724,11.00536973,4755.2,4755.1,0.2953]
[1755968245502,10.44046362,4755.2,4755.1,0.2953]
[1755968247780,10.44046362,4755.2,4755.1,0.001]
[1755968248381,10.44046362,4755.2,4755.1,0.2953]
[1755968248778,6.92946362,4755.2,4755.1,0.2953]
[1755968249010,9.77846362,4755.2,4755.1,0.742]
[1755968249214,9.77846362,4755.2,4755.1,0.001]
[1755968249415,10.73466362,4755.2,4755.1,0.001]
[1755968250108,11.04786363,4755.2,4755.1,0.001]
[1755968250310,10.73466362,4755.2,4755.1,0.001]
[1755968251412,11.48726415,4755.2,4755.1,0.001]
[1755968253315,11.19106415,4755.2,4755.1,0.001]
[1755968253528,11.19140344,4755.2,4755.1,0.001]
[1755968253692,11.48760344,4755.2,4755.1,0.001]
[1755968254334,11.60551345,4755.2,4755.1,0.001]
[1755968254497,10.85291292,4755.2,4755.1,0.001]
[1755968255591,10.55671292,4755.2,4755.1,0.2953]
[1755968255829,10.55671292,4755.2,4755.1,0.001]
[1755968256808,10.5567927,4755.2,4755.1,0.001]
[1755968258719,10.5547927,4755.2,4755.1,0.2953]
[1755968258922,10.5547927,4755.2,4755.1,0.742]
[1755968259225,10.5547927,4755.2,4755.1,0.001]
[1755968259527,11.35681946,4755.2,4755.1,0.001]
[1755968260522,10.22567183,4755.2,4755.1,0.001]
[1755968262146,10.52187183,4755.2,4755.1,0.001]
[1755968262308,12.60827183,4755.2,4755.1,0.001]
[1755968262510,12.13987183,4755.2,4755.1,0.001]
[1755968262711,12.46900319,4755.2,4755.1,0.001]
[1755968263232,12.15454054,4755.2,4755.1,0.001]
[1755968263435,12.46982053,4755.2,4755.1,0.001]
[1755968264738,5.76300519,4755.1,4755.0,0.001]
[1755968264946,6.5304194,4755.1,4755.0,0.001]
[1755968265541,6.6147214,4755.1,4755.0,0.001]
[1755968267038,11.6717214,4755.1,4755.0,0.001]
[1755968267349,11.9679214,4755.1,4755.0,0.001]
[1755968269753,11.6717214,4755.1,4755.0,0.7298]
[1755968269959,11.6717214,4755.1,4755.0,0.3018]
[1755968271259,11.6717214,4755.1,4755.0,0.001]
[1755968271863,15.1787214,4755.1,4755.0,0.3018]
[1755968272248,15.4836214,4755.1,4755.0,0.001]
[1755968272869,15.9241214,4755.1,4755.0,0.001]
[1755968273231,15.92438069,4755.1,4755.0,0.001]
[1755968273734,15.92436989,4755.1,4755.0,0.001]
[1755968274077,15.92436989,4755.1,4754.8,0.021]
[1755968274078,5.76309365,4754.9,4754.8,0.021]
[1755968274360,10.44745635,4754.9,4754.8,0.021]
[1755968274763,10.53176635,4754.9,4754.8,0.021]
[1755968274965,10.86091281,4754.9,4754.8,0.021]
[1755968276742,11.30141281,4754.9,4754.8,0.021]
[1755968278264,10.97226635,4754.9,4754.8,0.021]
[1755968278433,10.22686635,4754.9,4754.8,0.021]
[1755968279068,10.97226635,4754.9,4754.8,0.021]
[1755968279836,5.10313788,4754.8,4754.7,0.001]
[1755968280131,5.87080058,4754.8,4754.7,0.001]
[1755968280542,6.17570058,4754.8,4754.7,0.001]
[1755968281065,6.26001758,4754.8,4754.7,0.001]
[1755968281428,7.02966893,4754.8,4754.7,0.001]
[1755968281874,6.71414045,4754.8,4754.7,0.001]
[1755968282034,7.02943707,4754.8,4754.7,0.001]
[1755968285056,6.58893707,4754.8,4754.7,0.001]
[1755968285278,6.28403707,4754.8,4754.7,0.001]
[1755968285952,7.02943707,4754.8,4754.7,0.001]
[1755968286577,6.28403707,4754.8,4754.7,0.001]
[1755968286971,6.58893707,4754.8,4754.7,0.001]
[1755968288185,6.28403707,4754.8,4754.7,0.3018]
[1755968289178,6.28403707,4754.8,4754.7,0.001]
[1755968289566,5.95488572,4754.8,4754.7,0.001]
[1755968290252,6.25978572,4754.8,4754.7,0.001]
[1755968291570,6.58185018,4754.8,4754.7,0.001]
[1755968291782,6.69996693,4754.8,4754.7,0.001]
[1755968291986,7.35996693,4754.8,4754.7,0.001]
[1755968292223,5.76318211,4754.7,4754.6,0.001]
[1755968292485,10.78269416,4754.7,4754.6,0.001]
[1755968293782,11.11189501,4754.7,4754.6,0.001]
[1755968294755,2.10331482,4754.4,4754.3,0.001]
[1755968294958,9.68233418,4754.4,4754.3,0.001]
[1755968295376,10.20715818,4754.4,4754.3,0.001]
[1755968297582,10.20713293,4754.4,4754.3,0.001]
[1755968297781,9.76663293,4754.4,4754.3,0.001]
[1755968297982,40.42663293,4754.4,4754.3,1e-08]
[1755968298159,42.36679924,4754.4,4754.3,1e-08]
[1755968299758,42.37849924,4754.4,4754.3,1e-08]
[1755968301002,42.70771919,4754.4,4754.3,1e-08]
[1755968301502,41.95047607,4754.4,4754.3,1e-08]
[1755968301862,38.44348465,4754.4,4754.3,0.31640001]
[1755968302065,38.44348465,4754.4,4753.8,0.4509]
[1755968302066,2.7634033,4754.2,4753.8,0.02]
[1755968302285,11.65536287,4754.2,4753.8,0.02]
[1755968302493,11.65536287,4754.2,4754.1,0.3174]
[1755968302716,11.65536287,4754.2,4754.1,0.001]
[1755968303010,12.03459187,4754.2,4754.1,0.001]
[1755968303311,12.48679187,4754.2,4754.1,0.001]
[1755968304587,12.48678255,4754.2,4754.1,0.001]
[1755968306081,12.17196652,4754.2,4754.1,0.001]
[1755968306277,11.5429136,4754.2,4754.1,0.001]
[1755968306473,11.8378136,4754.2,4754.1,0.001]
[1755968307112,11.71976652,4754.2,4754.1,0.001]
[1755968307713,11.42486652,4754.2,4754.1,0.001]
[1755968308014,11.52966652,4754.2,4754.1,0.001]
[1755968308210,11.7264226,4754.2,4754.1,0.001]
[1755968308413,11.64772016,4754.2,4754.1,0.3174]
[1755968308618,11.52966652,4754.2,4754.1,0.3174]
[1755968308784,11.84448764,4754.2,4754.1,0.3174]
[1755968309912,5.76344755,4754.1,4753.8,0.02]
[1755968310117,6.53040289,4754.1,4753.8,0.02]
[1755968310815,6.96130289,4754.1,4753.8,0.02]
[1755968311059,7.25620289,4754.1,4753.8,0.02]
[1755968311184,6.96130289,4754.1,4754.0,0.3174]
[1755968311924,6.96130289,4754.1,4754.0,0.001]
[1755968312214,7.70840289,4754.1,4754.0,0.001]
[1755968313494,7.70845109,4754.1,4754.0,0.001]
[1755968313698,7.39358177,4754.1,4754.0,0.001]
[1755968314005,7.70853173,4754.1,4754.0,0.001]
[1755968314816,7.29066203,4754.1,4754.0,0.001]
[1755968315516,7.74286203,4754.1,4754.0,0.001]
[1755968316013,7.29066203,4754.1,4754.0,0.001]
[1755968316409,7.29066203,4754.1,4754.0,0.3174]
[1755968316714,7.29066203,4754.1,4754.0,0.001]
[1755968317100,7.29069409,4754.1,4754.0,0.001]
[1755968317338,8.03779409,4754.1,4754.0,0.001]
[1755968317639,3.66,4753.9,4753.8,0.02]
[1755968317811,8.33381624,4753.9,4753.8,0.02]
[1755968318016,10.88955228,4753.9,4753.8,0.02]
[1755968318439,10.97388328,4753.9,4753.8,0.02]
[1755968319128,16.51061423,4753.2,4753.1,0.001]
[1755968319321,22.80243047,4753.2,4753.1,0.001]
[1755968319637,23.25463047,4753.2,4753.1,0.001]
[1755968319839,23.33897647,4753.2,4753.1,0.001]
[1755968320319,23.33886721,4753.2,4753.1,0.001]
[1755968321213,23.66815441,4753.2,4753.1,0.001]
[1755968321613,23.37325441,4753.2,4753.1,0.001]
[1755968321821,23.66815441,4753.2,4753.1,0.001]
[1755968323045,22.92105441,4753.2,4753.1,0.001]
[1755968323244,23.37325441,4753.2,4753.1,0.001]
[1755968323412,23.66815441,4753.2,4753.1,0.001]
[1755968323612,23.47128788,4753.2,4753.1,0.001]
[1755968323813,23.66796493,4753.2,4753.1,0.001]
[1755968324214,23.66797076,4753.2,4753.1,0.001]
[1755968324427,5.76389009,4753.1,4753.0,0.001]
[1755968324629,12.33681342,4753.1,4753.0,0.001]
[1755968324810,5.76397862,4752.9,4752.8,0.02]
[1755968325018,10.43750195,4752.9,4752.8,0.02]
[1755968325211,10.88970195,4752.9,4752.8,0.02]
[1755968326126,11.16840195,4752.9,4752.8,0.02]
[1755968327829,10.42130195,4752.9,4752.8,0.02]
[1755968328813,10.71620195,4752.9,4752.8,0.02]
[1755968329050,10.42130195,4752.9,4752.8,0.02]
[1755968329547,11.18300195,4752.9,4752.8,0.02]
[1755968329916,10.87200195,4752.9,4752.8,0.02]
[1755968330452,11.18300195,4752.9,4752.8,0.02]
[1755968331248,6.91430195,4752.9,4752.8,0.02]
[1755968331551,10.42230195,4752.9,4752.8,0.02]
[1755968331751,10.73330195,4752.9,4752.8,0.02]
[1755968332050,11.18400195,4752.9,4752.8,0.02]
[1755968332251,12.31638635,4752.9,4752.8,0.02]
[1755968332753,12.64570852,4752.9,4752.8,0.02]
[1755968333452,11.76599646,4752.9,4752.8,0.02]
[1755968333751,12.64553858,4752.9,4752.8,0.02]
[1755968334522,11.88383858,4752.9,4752.8,0.02]
[1755968334738,12.19483858,4752.9,4752.8,0.02]
[1755968335044,12.64553858,4752.9,4752.8,0.02]
[1755968335630,9.13753858,4752.9,4752.8,0.02]
[1755968335850,12.64553858,4752.9,4752.8,0.02]
[1755968336934,11.88383858,4752.9,4752.8,0.02]
[1755968337120,12.64553858,4752.9,4752.8,0.02]
[1755968338051,12.31621641,4752.9,4752.8,0.02]
[1755968338258,10.42213201,4752.9,4752.8,0.02]
[1755968338435,12.00522601,4752.9,4752.8,0.02]
[1755968339358,10.87283201,4752.9,4752.8,0.02]
[1755968339526,6.91413201,4752.9,4752.8,0.3249]
[1755968339726,10.42213201,4752.9,4752.8,0.3249]
[1755968340624,10.42213201,4752.9,4752.8,0.02]
[1755968341130,11.55471668,4752.9,4752.8,0.02]
[1755968341330,11.88402769,4752.9,4752.8,0.02]
[1755968342243,11.56950852,4752.9,4752.8,0.02]
[1755968342455,21.52318835,4752.9,4752.8,0.02]
[1755968342659,21.07248835,4752.9,4752.8,0.02]
[1755968342957,11.88420287,4752.9,4752.8,0.02]
[1755968343260,20.76149742,4752.9,4752.8,0.3249]
[1755968343591,11.88420287,4752.9,4752.8,0.3249]
[1755968343731,7.2436182,4752.9,4752.8,0.3249]
[1755968343932,10.7506182,4752.9,4752.8,0.3249]
[1755968344439,11.88323989,4752.9,4752.8,0.3249]
[1755968345124,10.09065522,4752.9,4752.8,0.6036]
[1755968345524,12.33393989,4752.9,4752.8,0.02]
[1755968345722,11.51235522,4752.9,4752.8,0.02]
[1755968345967,2.76419998,4752.4,4752.3,0.001]
[1755968346259,10.14372763,4752.4,4752.3,0.001]
[1755968346468,10.14372763,4752.4,4752.3,0.3059]
[1755968346667,10.47305715,4752.4,4752.3,0.3059]
[1755968347227,10.77895715,4752.4,4752.3,0.3059]
[1755968347839,7.60325717,4752.4,4752.3,0.3059]
[1755968348058,9.81305715,4752.4,4752.3,0.3059]
[1755968348265,12.2392357,4752.4,4752.3,0.001]
[1755968349667,11.90990618,4752.4,4752.3,0.3059]
[1755968349863,11.90990618,4752.4,4752.3,0.001]
[1755968350256,11.90990618,4752.4,4752.3,0.3059]
[1755968350985,11.91390618,4752.4,4752.3,0.3059]
[1755968352076,8.40355086,4752.4,4752.3,0.3059]
[1755968352282,11.91455086,4752.4,4752.3,0.3059]
[1755968352798,11.91455965,4752.4,4752.3,0.3059]
[1755968352943,12.24389523,4752.4,4752.3,0.3059]
[1755968353891,12.24389523,4752.4,4752.3,0.001]
[1755968354057,11.79176101,4752.4,4752.3,0.001]
[1755968354263,12.24603153,4752.4,4752.3,0.001]
[1755968354486,13.86503153,4752.4,4752.3,0.001]
[1755968354659,12.57244715,4752.4,4752.3,0.3059]
[1755968355082,12.57244747,4752.4,4752.3,0.3059]
[1755968355461,13.23244747,4752.4,4752.3,0.001]
[1755968356097,13.51114747,4752.4,4752.3,0.001]
[1755968356269,13.82214747,4752.4,4752.3,0.001]
[1755968356471,14.27284747,4752.4,4752.3,0.001]
[1755968356988,13.82214747,4752.4,4752.3,0.001]
[1755968357188,14.27284747,4752.4,4752.3,0.001]
[1755968357699,13.13928192,4752.4,4752.3,0.001]
[1755968358868,13.13929025,4752.4,4752.3,0.001]
[1755968362093,12.94211523,4752.4,4752.3,0.001]
[1755968362388,13.13932137,4752.4,4752.3,0.001]
[1755968363360,2.10442138,4751.9,4751.8,0.021]
[1755968363561,6.38622172,4751.9,4751.8,0.021]
[1755968363760,9.38622172,4751.9,4751.8,0.021]
[1755968363978,9.99457302,4751.9,4751.8,0.021]
[1755968364175,10.10017302,4751.9,4751.8,0.021]
[1755968365708,10.10017302,4751.9,4751.8,0.3081]
[1755968365906,11.71917302,4751.9,4751.8,0.3081]
[1755968366696,8.20717302,4751.9,4751.8,0.3081]
[1755968366896,11.72317302,4751.9,4751.8,0.3081]
[1755968367194,11.72317302,4751.9,4751.8,0.021]
[1755968367597,12.18547302,4751.9,4751.8,0.021]
[1755968368495,11.72317302,4751.9,4751.8,0.021]
[1755968368803,8.20717302,4751.9,4751.8,0.021]
[1755968369104,11.72217302,4751.9,4751.8,0.3081]
[1755968369309,8.20717302,4751.9,4751.8,0.3081]
[1755968369604,12.48837302,4751.9,4751.8,0.021]
[1755968369802,8.97337302,4751.9,4751.8,0.021]
[1755968370011,12.18547302,4751.9,4751.8,0.021]
[1755968371134,8.20717302,4751.9,4751.8,0.3081]
[1755968371417,9.61975164,4751.9,4751.8,0.3081]
[1755968371702,11.72417302,4751.9,4751.8,0.3081]
[1755968371918,8.20717302,4751.9,4751.8,0.3081]
[1755968372200,12.06717615,4751.9,4751.8,0.021]
[1755968372376,11.60487615,4751.9,4751.8,0.021]
[1755968372701,9.22175477,4751.9,4751.8,0.3081]
[1755968374115,11.32617615,4751.9,4751.8,0.3081]
[1755968375090,9.22175477,4751.9,4751.8,0.3081]
[1755968375297,9.97911367,4751.9,4751.8,0.3081]
[1755968375468,12.08366569,4751.9,4751.8,0.3081]
[1755968375774,12.54596569,4751.9,4751.8,0.021]
[1755968375976,12.84986569,4751.9,4751.8,0.021]
[1755968376392,12.54596569,4751.9,4751.8,0.021]
[1755968376792,12.08366569,4751.9,4751.8,0.021]
[1755968378215,12.54596569,4751.9,4751.8,0.021]
[1755968379424,12.84986569,4751.9,4751.8,0.021]
[1755968379601,12.54596569,4751.9,4751.8,0.021]
[1755968379796,12.08366569,4751.9,4751.8,0.021]
[1755968380403,8.56766569,4751.9,4751.8,0.021]
[1755968380600,9.97724431,4751.9,4751.8,0.3081]
[1755968380818,9.97724431,4751.9,4751.8,0.021]
[1755968381016,12.08166569,4751.9,4751.8,0.021]
[1755968382025,12.08172,4751.9,4751.8,0.021]
[1755968383126,12.54402,4751.9,4751.8,0.021]
[1755968383923,11.74672158,4751.9,4751.8,0.021]
[1755968384111,12.20902158,4751.9,4751.8,0.021]
[1755968384311,11.9852671,4751.9,4751.8,0.021]
[1755968384701,11.98526683,4751.9,4751.8,0.021]
[1755968386548,7.70506683,4751.9,4751.8,0.021]
[1755968386698,12.18196683,4751.9,4751.8,0.021]
[1755968386899,13.78063673,4751.9,4751.8,0.021]
[1755968387428,14.10999933,4751.9,4751.8,0.021]
[1755968388014,12.64426683,4751.9,4751.8,0.021]
[1755968388964,9.13126683,4751.9,4751.8,0.021]
[1755968389120,12.64326683,4751.9,4751.8,0.021]
[1755968389325,11.87706683,4751.9,4751.8,0.021]
[1755968389719,12.61346683,4751.9,4751.8,0.021]
[1755968390452,13.74983673,4751.9,4751.8,0.021]
[1755968390652,12.61346683,4751.9,4751.8,0.021]
[1755968391023,13.74983673,4751.9,4751.8,0.021]
[1755968391223,13.74883673,4751.9,4751.8,0.021]
[1755968391647,13.43295862,4751.9,4751.8,0.021]
[1755968391851,13.74865864,4751.9,4751.8,0.021]
[1755968392472,13.74866923,4751.9,4751.8,0.021]
[1755968392652,13.01231394,4751.9,4751.8,0.021]
[1755968392821,13.34167628,4751.9,4751.8,0.021]
[1755968393018,14.07807628,4751.9,4751.8,0.021]
[1755968394540,12.94170638,4751.9,4751.8,0.021]
[1755968394741,14.07847885,4751.9,4751.8,0.021]
[1755968394942,22.95661296,4751.9,4751.8,0.021]
[1755968395156,21.81984049,4751.9,4751.8,0.021]
[1755968396250,22.95645302,4751.9,4751.8,0.021]
[1755968396473,13.64181891,4751.9,4751.8,0.021]
[1755968396765,14.07831891,4751.9,4751.8,0.021]
[1755968396969,14.07731891,4751.9,4751.8,0.021]
[1755968397876,12.94070638,4751.9,4751.8,0.021]
[1755968398369,14.0771824,4751.9,4751.8,0.021]
[1755968398671,12.94070638,4751.9,4751.8,0.021]
[1755968400588,0.66,4751.7,4749.8,0.02]
[1755968400782,3.56806149,4750.2,4749.8,0.02]
[1755968400948,5.10529821,4750.0,4749.8,0.02]
[1755968401282,2.66547482,4749.9,4749.8,0.02]
[1755968401444,14.2862598,4749.9,4749.8,0.02]
[1755968401643,15.75592365,4749.9,4749.8,0.02]
[1755968401981,4.03589147,4749.9,4749.8,0.3321]
[1755968402183,3.83886734,4749.9,4749.8,0.02]
[1755968402381,5.94417482,4749.9,4749.8,0.02]
[1755968402556,3.83886734,4749.9,4749.8,0.02]
[1755968402762,3.83886734,4749.9,4749.8,0.3321]
[1755968402945,5.94417482,4749.9,4749.8,0.02]
[1755968403282,3.83886734,4749.9,4749.8,0.02]
[1755968403578,3.83886734,4749.9,4749.8,0.3321]
[1755968403745,4.16835334,4749.9,4749.8,0.3321]
[1755968404396,3.88965334,4749.9,4749.8,0.3321]
[1755968404555,5.99496082,4749.9,4749.8,0.3321]
[1755968404959,3.88965334,4749.9,4749.8,0.3321]
[1755968405158,10.90436082,4749.9,4749.8,0.02]
[1755968405480,11.85830503,4749.9,4749.8,0.02]
[1755968405682,11.85830503,4749.9,4749.8,0.3321]
[1755968405683,4.84359755,4749.9,4749.8,0.3321]
[1755968405981,7.49368089,4749.9,4749.8,0.02]
[1755968406187,6.92788971,4749.9,4749.8,0.02]
[1755968406358,6.92788971,4749.9,4749.8,0.3321]
[1755968406359,1.65171993,4749.9,4749.8,0.3321]
[1755968406558,2.84029348,4749.9,4749.8,0.02]
[1755968406759,11.07961678,4749.9,4749.8,0.02]
[1755968406961,10.34322629,4749.9,4749.8,0.02]
[1755968407172,12.30514176,4749.9,4749.8,0.02]
[1755968407365,11.73962629,4749.9,4749.8,0.02]
[1755968407767,11.41014029,4749.9,4749.8,0.02]
[1755968408692,10.86804029,4749.9,4749.8,0.02]
[1755968408855,10.97364029,4749.9,4749.8,0.02]
[1755968409187,11.41014029,4749.9,4749.8,0.02]
[1755968410157,11.77809369,4749.9,4749.8,0.02]
[1755968410353,11.40974823,4749.9,4749.8,0.02]
[1755968410554,11.97420151,4749.9,4749.8,0.02]
[1755968410774,12.3037316,4749.9,4749.8,0.02]
[1755968411056,12.30372262,4749.9,4749.8,0.02]
[1755968412055,11.73923805,4749.9,4749.8,0.02]
[1755968412260,11.85675688,4749.9,4749.8,0.02]
[1755968412657,5.37853057,4749.9,4749.8,0.02]
[1755968413004,3.62789925,4749.9,4749.8,0.3321]
[1755968413298,3.52229925,4749.9,4749.8,0.3321]
[1755968413583,3.52229925,4749.9,4749.8,0.02]
[1755968415691,3.52229925,4749.9,4749.8,0.3321]
[1755968416160,1.41699177,4749.9,4749.8,0.3321]
[1755968416491,0.96242443,4749.9,4749.8,0.6108]
[1755968416668,0.632918,4749.9,4749.8,0.6108]
[1755968416869,0.45456734,4750.0,4749.8,0.3321]
[1755968417070,0.632912,4750.0,4749.8,0.3321]
[1755968417390,0.89351805,4750.6,4749.8,0.3321]
[1755968417391,0.45456734,4750.4,4749.9,0.2787]
[1755968417596,0.632849,4750.4,4750.3,0.3121]
[1755968417802,3.632849,4750.4,4750.3,0.3121]
[1755968417975,4.08741634,4750.4,4750.3,0.3121]
[1755968418164,3.45456734,4750.4,4750.3,0.3121]
[1755968418492,3.76666734,4750.4,4750.3,0.3121]
[1755968418864,1.619,4751.1,4750.3,0.3121]
[1755968418865,0.56404783,4751.1,4750.3,0.3121]
[1755968419197,0.3121,4750.9,4750.3,0.3121]
[1755968419559,2.4169725,4750.9,4750.3,0.3121]
[1755968419758,0.002,4750.5,4750.3,0.3121]
[1755968419963,0.002,4750.5,4750.3,0.5908]
[1755968420172,0.002,4750.5,4750.3,0.3121]
[1755968420493,0.002,4750.5,4750.4,0.47181]
[1755968420695,0.002,4750.5,4750.4,0.75721]
[1755968420896,0.002,4750.5,4750.4,2.86229588]
[1755968421263,0.002,4750.5,4750.4,2.99229588]
[1755968421468,0.002,4750.5,4750.4,2.86229588]
[1755968423199,0.002,4750.5,4750.4,2.96789588]
[1755968423400,0.002,4750.5,4750.4,0.58411]
[1755968423602,0.002,4750.5,4750.4,0.2854]
[1755968426381,0.002,4750.5,4750.1,5.148]
[1755968426699,0.309,4750.3,4750.1,1.619]
[1755968426907,0.1056,4750.2,4750.1,1.619]
[1755968430404,0.1056,4750.2,4750.1,1.9044]
[1755968432881,0.1056,4750.2,4750.1,1.619]
[1755968433085,0.8558,4750.2,4750.1,1.619]
[1755968433501,0.1056,4750.2,4750.1,1.619]
[1755968433915,2.51977451,4750.2,4750.1,1.619]
[1755968434207,0.8558,4750.2,4750.1,1.619]
[1755968434907,2.96097451,4750.2,4750.1,1.619]
[1755968435206,0.8558,4750.2,4750.1,1.619]
[1755968435409,0.1056,4750.2,4750.1,1.619]
[1755968436513,0.1076,4750.2,4750.1,1.619]
[1755968437896,0.1076,4750.2,4750.1,1.9044]
[1755968438099,2.52177451,4750.2,4750.1,1.619]
[1755968438298,2.21277451,4750.2,4750.1,1.619]
[1755968438919,0.1076,4750.2,4750.1,1.9044]
[1755968439071,0.1076,4750.2,4750.1,2.44974]
[1755968439275,0.002,4750.2,4750.1,2.44974]
[1755968439576,0.002,4750.2,4750.1,4.93925883]
[1755968441705,0.002,4750.2,4750.1,8.46625883]
[1755968442080,0.002,4750.2,4750.1,7.93925883]
[1755968442287,0.002,4750.2,4750.1,11.46625883]
[1755968442603,0.002,4750.2,4750.1,12.12625883]
[1755968443590,0.002,4750.2,4750.1,12.12525883]
[1755968445502,0.002,4750.2,4750.1,12.20960083]
[1755968447285,0.002,4750.5,4750.4,2.76508588]
[1755968447507,0.002,4750.5,4750.4,22.31417084]
[1755968447712,0.002,4750.5,4750.4,7.43807584]
[1755968447910,0.002,4750.5,4750.4,7.76302184]
[1755968447911,0.7522,4750.5,4750.4,7.76302184]
[1755968448221,0.002,4750.5,4750.4,5.82103188]
[1755968448414,0.002,4750.5,4750.4,6.10643188]
[1755968449300,0.002,4750.5,4750.4,2.58043188]
[1755968449535,0.002,4750.5,4750.4,6.10743188]
[1755968449838,0.002,4750.5,4750.4,11.44906012]
[1755968453244,0.002,4750.5,4750.4,12.10906012]
[1755968458748,0.002,4750.5,4750.4,11.83036012]
[1755968459131,0.002,4750.5,4750.4,11.82836012]
[1755968461032,0.3156,4750.5,4750.4,7.35796012]
[1755968461234,0.7718,4750.5,4750.4,5.73468588]
[1755968461445,0.7718,4750.5,4750.4,2.21068588]
[1755968461759,0.7718,4750.5,4750.4,5.73568588]
[1755968461960,0.7718,4750.5,4750.4,5.48568588]
[1755968462263,0.7718,4750.5,4750.4,5.59128588]
[1755968462758,0.7718,4750.5,4750.4,6.55449041]
[1755968462759,0.002,4750.5,4750.4,6.55449041]
[1755968463151,0.002,4750.5,4750.4,7.18708241]
[1755968463663,0.002,4750.5,4750.4,6.55449041]
[1755968465171,0.3156,4750.5,4750.4,6.55449041]
[1755968465379,0.7718,4750.5,4750.4,6.55449041]
[1755968466053,0.3156,4750.5,4750.4,6.55449041]
[1755968466376,0.7718,4750.5,4750.4,6.55449041]
[1755968467377,0.002,4750.5,4750.4,3.33979041]
[1755968467604,0.002,4750.5,4750.4,9.86379041]
[1755968469782,0.002,4750.5,4750.4,6.02949041]
[1755968469986,0.3156,4750.5,4750.4,9.55249041]
[1755968470162,0.7718,4750.5,4750.4,6.02949041]
[1755968470505,0.7718,4750.5,4750.4,9.55249041]
[1755968471583,0.002,4750.5,4750.4,9.86279041]
[1755968471971,0.002,4750.5,4750.4,10.52279041]
[1755968473306,0.002,4751.0,4750.9,2.76486434]
[1755968473599,0.002,4751.0,4750.9,21.39234296]
[1755968473771,0.002,4751.0,4750.9,21.49794296]
[1755968473991,0.002,4751.0,4750.9,21.58226896]
[1755968474191,0.002,4751.0,4750.9,21.58426896]
[1755968474611,0.002,4751.0,4750.9,21.73854651]
[1755968476821,0.002,4751.2,4751.1,2.76477573]
[1755968477121,0.002,4752.3,4751.4,5.76464284]
[1755968477338,1e-08,4751.5,4751.4,9.70354284]
[1755968477692,1e-08,4751.8,4751.7,2.76450996]
[1755968478010,1e-08,4751.8,4751.7,22.07565037]
[1755968478518,1e-08,4751.8,4751.7,22.35435037]
[1755968479252,1e-08,4751.8,4751.7,22.07565037]
[1755968479565,1e-08,4751.8,4751.7,21.76535037]
[1755968479919,0.30430001,4751.8,4751.7,17.58235037]
[1755968480161,0.30430001,4751.8,4751.7,6.78465537]
[1755968480352,0.75680001,4751.8,4751.7,8.73410996]
[1755968480752,1e-08,4751.8,4751.7,8.73410996]
[1755968481759,1e-08,4751.8,4751.7,20.48930496]
[1755968482452,1e-08,4751.8,4751.7,20.94180496]
[1755968482670,1e-08,4751.8,4751.7,23.08368296]
[1755968484070,1e-08,4751.8,4751.7,22.78618296]
[1755968484965,0.30430001,4751.8,4751.7,19.26218296]
[1755968485168,0.75680001,4751.8,4751.7,7.80448796]
[1755968485369,0.75680001,4751.8,4751.7,9.18560996]
[1755968485886,0.75680001,4751.8,4751.7,8.73310996]
[1755968487377,1e-08,4751.8,4751.7,8.73310996]
[1755968487584,1e-08,4751.8,4751.7,19.82830496]
[1755968487954,1e-08,4751.8,4751.7,20.30280496]
[1755968488155,1e-08,4751.8,4751.7,23.10468296]
[1755968488665,0.00200001,4751.8,4751.7,23.10468296]
[1755968488866,0.00200001,4751.8,4751.7,19.58168296]
[1755968489077,0.00200001,4751.8,4751.7,23.10368296]
[1755968489383,0.00200001,4751.8,4751.7,23.83168296]
[1755968489564,0.002,4752.3,4752.2,2.76428854]
[1755968489761,0.3063,4752.3,4752.2,11.54871739]
[1755968489992,0.7588,4752.3,4752.2,14.59988854]
[1755968490686,0.7588,4752.3,4752.2,14.60088854]
[1755968490871,0.7588,4752.3,4752.2,11.60088854]
[1755968491584,0.7588,4752.3,4752.2,8.07788854]
[1755968491884,0.7588,4752.3,4752.2,11.60188854]
[1755968493463,0.7588,4752.3,4752.2,11.60088854]
[1755968495187,0.7588,4752.3,4752.2,7.35088854]
[1755968497294,0.7588,4752.3,4752.2,3.82788854]
[1755968497493,0.7588,4752.3,4752.2,7.35088854]
[1755968497904,0.7588,4752.3,4752.2,3.82788854]
[1755968498194,0.7588,4752.3,4752.2,7.34988854]
[1755968500121,0.7588,4752.3,4752.2,3.82788854]
[1755968500290,0.7588,4752.3,4752.2,7.34888854]
[1755968500815,0.7588,4752.3,4752.2,3.82788854]
[1755968501007,0.7588,4752.3,4752.2,7.34888854]
[1755968501502,0.7588,4752.3,4752.2,5.2446]